bitfinex-derivatives/quotes_ETHF0:USTF0_20210107
["timestamp","ask_amount","ask_price","bid_price","bid_amount"]
[1609992872482,68.2256,1207.2,1206.1,4.00959]
[1609992872881,4.00959,1206.5,1206.1,4.00959]
[1609992874090,4.00959,1206.5,1206.0,68.6857]
[1609992874788,4.00959,1206.1,1206.0,68.6857]
[1609992881593,4.00959,1206.1,1205.7,51.511]
[1609992882893,4.00959,1205.8,1205.7,51.511]
[1609992890905,7.03179,1205.8,1204.8,4.00959]
[1609992891805,7.03179,1205.8,1203.5,5.7299]
[1609992892407,7.03179,1205.8,1203.5,9.4039]
[1609992892910,3.0222,1205.8,1204.7,4.00959]
[1609992893810,3.0222,1205.8,1203.5,9.4039]
[1609992894013,3.0222,1205.8,1203.5,5.7299]
[1609992894512,3.0222,1205.8,1201.7,5.7737]
[1609992894713,3.0222,1205.8,1201.8,30.0]
[1609992895012,3.0222,1205.8,1204.4,4.00959]
[1609992895214,3.0222,1205.8,1201.8,30.0]
[1609992895911,2.1401,1206.1,1201.8,30.0]
[1609992896112,2.6511,1206.4,1201.8,30.0]
[1609992896412,5.9589,1206.7,1201.8,30.0]
[1609992897113,4.00959,1204.1,1203.9,4.00959]
[1609992897714,4.00959,1204.1,1201.8,30.0]
[1609992899014,3.2936,1204.3,1203.4,4.00959]
[1609992899514,3.2936,1204.3,1201.8,30.0]
[1609992900919,3.2936,1204.3,1203.6,4.00959]
[1609992901824,3.2936,1204.3,1201.8,37.377]
[1609992902225,3.2936,1204.3,1201.8,30.0]
[1609992902934,4.00959,1203.4,1203.3,4.00959]
[1609992906032,3.2936,1204.3,1203.3,4.00959]
[1609992906328,2.1536,1204.6,1203.3,4.00959]
[1609992906529,2.4879,1204.9,1203.3,4.00959]
[1609992906735,5.9589,1206.7,1203.3,4.00959]
[1609992906933,4.00959,1204.4,1204.2,4.00959]
[1609992907230,2.3332,1204.8,1204.2,4.00959]
[1609992908131,5.9589,1206.7,1204.2,4.00959]
[1609992908431,5.9589,1206.7,1204.2,7.68359]
[1609992908931,5.9589,1206.7,1205.0,4.00959]
[1609992909831,30.0,1208.4,1205.0,4.00959]
[1609992909832,66.4778,1207.1,1205.1,57.0999]
[1609992911033,4.00959,1205.6,1205.3,4.00959]
[1609992914938,4.00959,1205.6,1205.5,4.00959]
[1609992915339,2.4458,1206.6,1205.5,6.12409]
[1609992916140,66.4778,1207.1,1205.5,6.12409]
[1609992916341,66.4778,1207.1,1205.5,2.1145]
[1609992917041,4.00959,1205.6,1205.5,6.12409]
[1609992918143,3.3033,1206.5,1205.5,6.12409]
[1609992918944,3.3033,1206.5,1206.0,4.00959]
[1609992919147,5.965,1208.2,1206.0,4.00959]
[1609992919947,5.965,1208.2,1205.5,32.1145]
[1609992920147,9.1586,1208.2,1205.5,32.1145]
[1609992920746,9.1586,1208.2,1205.5,2.1145]
[1609992920946,4.00959,1206.2,1205.9,4.00959]
[1609992922452,4.00959,1206.2,1204.3,30.0]
[1609992922952,4.00959,1205.7,1205.5,4.00959]
[1609992923953,4.00959,1205.7,1204.2,35.8071]
[1609992924155,4.00959,1205.7,1204.2,30.0]
[1609992924854,4.00959,1205.7,1204.1,5.8241]
[1609992925056,4.00959,1205.0,1204.7,4.00959]
[1609992927356,4.00959,1205.0,1203.0,33.674]
[1609992927956,2.9891,1206.2,1203.0,33.674]
[1609992928357,2.9891,1206.2,1205.1,52.561]
[1609992928557,2.9891,1206.2,1203.8,68.1621]
[1609992928756,2.9891,1206.2,1203.8,71.8361]
[1609992929056,4.00959,1204.9,1204.7,4.00959]
[1609992930663,2.1884,1205.9,1204.7,4.00959]
[1609992931062,4.00959,1205.3,1205.0,4.00959]
[1609992933162,4.00959,1205.1,1205.0,4.00959]
[1609992938167,4.00959,1205.1,1204.9,59.1752]
[1609992943686,7.12609,1205.1,1204.9,59.1752]
[1609992947280,7.12609,1205.1,1204.1,4.00959]
[1609992949081,3.1165,1205.1,1204.3,4.00959]
[1609992949382,2.9626,1205.4,1204.3,4.00959]
[1609992949681,2.9626,1205.4,1203.0,35.9221]
[1609992949883,2.7767,1205.4,1203.0,35.9221]
[1609992951084,4.00959,1204.2,1204.0,4.00959]
[1609992951383,4.00959,1204.2,1203.0,5.9221]
[1609992953287,4.00959,1203.7,1203.6,4.00959]
[1609992958491,2.1374,1204.7,1201.9,30.0]
[1609992958694,2.7767,1205.4,1201.9,30.0]
[1609992958895,48.8155,1204.8,1203.4,55.0363]
[1609992959095,51.7536,1204.8,1203.4,55.0363]
[1609992959294,4.00959,1203.5,1203.4,55.0363]
[1609992961995,3.3074,1204.4,1203.4,55.0363]
[1609992963297,4.00959,1203.5,1203.4,55.0363]
[1609992966104,4.00959,1203.5,1203.1,65.2378]
[1609992967408,4.00959,1203.2,1203.1,65.2378]
[1609992970111,2.5326,1203.6,1203.1,65.2378]
[1609992971313,4.00959,1203.2,1203.1,65.2378]
[1609992971713,6.10269,1203.2,1203.1,65.2378]
[1609992971914,6.10269,1203.2,1201.6,4.00959]
[1609992972314,6.10269,1203.2,1197.5,30.0]
[1609992972613,6.10269,1203.2,1197.5,66.023]
[1609992973212,4.00959,1201.5,1201.4,4.00959]
[1609992974316,3.0197,1202.6,1201.4,4.00959]
[1609992974614,3.0197,1202.6,1201.4,7.68359]
[1609992974915,3.0197,1202.6,1201.4,4.00959]
[1609992975214,4.00959,1201.5,1201.4,4.00959]
[1609992975615,4.00959,1201.5,1197.5,69.697]
[1609992977317,4.00959,1201.5,1201.4,4.00959]
[1609992977617,4.00959,1201.5,1197.5,69.697]
[1609992979220,4.00959,1201.3,1201.0,4.00959]
[1609992980922,4.00959,1201.3,1197.5,39.697]
[1609992981422,63.2343,1201.9,1200.9,4.00959]
[1609992982823,63.2343,1201.9,1197.5,69.697]
[1609992983323,4.00959,1201.2,1201.1,4.00959]
[1609992984227,4.00959,1201.2,1197.5,33.674]
[1609992984427,4.00959,1201.2,1197.5,69.697]
[1609992985327,2.2695,1202.3,1200.8,4.00959]
[1609992985526,3.0197,1202.6,1197.5,39.697]
[1609992985727,3.0197,1202.6,1197.5,69.697]
[1609992985929,2.0931,1203.2,1197.5,69.697]
[1609992986228,30.0,1205.1,1197.5,69.697]
[1609992986830,30.0,1205.1,1197.5,39.697]
[1609992987028,30.0,1205.0,1197.5,39.697]
[1609992987230,4.00959,1200.8,1200.7,4.00959]
[1609992987530,2.2033,1201.9,1200.7,4.00959]
[1609992988930,54.4367,1201.8,1200.7,4.00959]
[1609992989330,4.00959,1200.8,1200.7,4.00959]
[1609992990931,54.4367,1201.8,1200.7,4.00959]
[1609992991332,4.00959,1201.1,1200.7,4.00959]
[1609992993035,4.00959,1201.1,1197.5,3.674]
[1609992993238,54.4367,1201.8,1200.4,4.00959]
[1609992994237,58.0477,1201.2,1200.4,4.00959]
[1609992994940,58.0477,1201.2,1197.5,3.674]
[1609992995239,58.0477,1201.2,1200.3,4.00959]
[1609992997340,4.00959,1200.4,1200.3,4.00959]
[1609992997741,4.00959,1200.4,1197.5,3.674]
[1609992999345,58.0477,1201.2,1200.0,4.00959]
[1609993001343,4.00959,1200.1,1200.0,4.00959]
[1609993002244,58.0477,1201.2,1200.0,4.00959]
[1609993003444,58.0477,1201.2,1200.2,4.00959]
[1609993003645,67.7669,1201.3,1200.2,4.00959]
[1609993003846,67.7669,1201.3,1197.5,3.674]
[1609993005346,67.7669,1201.3,1200.1,4.00959]
[1609993007352,4.00959,1200.3,1200.1,4.00959]
[1609993007951,4.00959,1200.3,1197.5,3.674]
[1609993009351,4.00959,1199.9,1199.7,4.00959]
[1609993013659,61.5496,1200.4,1199.7,4.00959]
[1609993015366,4.00959,1200.0,1199.7,4.00959]
[1609993018375,61.5496,1200.4,1199.7,4.00959]
[1609993018875,67.3995,1201.0,1199.7,4.00959]
[1609993019382,67.3995,1201.0,1200.2,4.00959]
[1609993019978,67.3995,1201.0,1197.5,3.674]
[1609993020777,67.3995,1201.0,1197.5,33.674]
[1609993021378,4.00959,1200.1,1199.8,4.00959]
[1609993022176,4.00959,1200.1,1197.5,3.674]
[1609993023379,4.00959,1199.8,1199.6,4.00959]
[1609993029283,3.3166,1201.0,1199.6,4.00959]
[1609993029483,2.2,1201.3,1199.9,4.00959]
[1609993029783,2.4509,1201.7,1199.9,4.00959]
[1609993030091,5.886,1201.9,1199.9,4.00959]
[1609993030383,11.051,1203.6,1197.5,44.666]
[1609993030585,5.969,1203.4,1197.5,44.666]
[1609993030784,35.969,1203.4,1197.5,44.666]
[1609993031084,40.6611,1203.4,1197.5,44.666]
[1609993031488,40.6611,1203.4,1200.9,4.00959]
[1609993031685,40.6611,1203.4,1197.5,44.666]
[1609993031886,71.0977,1202.8,1197.5,44.666]
[1609993032085,74.4503,1202.8,1197.5,44.666]
[1609993033389,74.4503,1202.8,1200.9,4.00959]
[1609993035391,4.00959,1201.2,1201.1,4.00959]
[1609993035791,2.6759,1202.3,1201.1,4.00959]
[1609993037493,2.6759,1202.3,1197.5,33.674]
[1609993038393,70.7763,1202.8,1197.5,33.674]
[1609993039494,4.00959,1202.0,1201.8,4.00959]
[1609993040293,4.00959,1202.0,1197.5,33.674]
[1609993041496,55.5448,1202.2,1197.5,33.674]
[1609993043496,4.00959,1201.5,1201.3,4.00959]
[1609993044597,4.00959,1201.5,1197.5,33.674]
[1609993045506,55.5448,1202.2,1197.5,33.674]
[1609993046199,2.7991,1201.9,1197.5,33.674]
[1609993047098,2.9314,1201.5,1197.5,33.674]
[1609993047498,2.9314,1201.5,1200.5,4.00959]
[1609993047799,2.9314,1201.5,1197.5,33.674]
[1609993049501,4.00959,1200.0,1199.9,4.00959]
[1609993052300,4.00959,1200.0,1197.5,33.674]
[1609993053503,4.00959,1200.0,1199.7,4.00959]
[1609993055507,4.00959,1200.0,1199.9,4.00959]
[1609993056309,4.00959,1200.0,1197.5,3.674]
[1609993057511,68.8232,1201.2,1199.8,4.00959]
[1609993058712,68.8232,1201.2,1197.5,3.674]
[1609993059011,98.8232,1201.2,1197.5,3.674]
[1609993059610,4.00959,1199.5,1199.4,4.00959]
[1609993060311,4.00959,1199.5,1197.5,11.051]
[1609993060914,4.00959,1199.5,1197.5,3.674]
[1609993061513,4.00959,1199.1,1199.0,4.00959]
[1609993062013,2.3354,1200.9,1199.0,4.00959]
[1609993062514,32.3354,1200.9,1199.0,4.00959]
[1609993063416,2.3354,1200.9,1199.0,4.00959]
[1609993063617,4.00959,1199.3,1197.5,3.674]
[1609993065527,4.00959,1199.3,1199.2,4.00959]
[1609993066528,4.00959,1199.3,1197.4,9.8611]
[1609993067528,32.3354,1200.9,1199.1,4.00959]
[1609993067728,32.3354,1200.9,1197.4,9.8611]
[1609993068530,2.3354,1200.9,1197.4,9.8611]
[1609993068729,30.0,1201.1,1197.4,17.2381]
[1609993068929,2.7795,1200.9,1197.4,17.2381]
[1609993069230,2.7795,1200.9,1197.4,9.8611]
[1609993069429,62.4521,1200.7,1197.4,47.2381]
[1609993070435,62.4521,1200.7,1197.4,17.2381]
[1609993070632,62.4521,1200.7,1197.4,9.8611]
[1609993071032,92.4521,1200.7,1197.4,9.8611]
[1609993071533,4.00959,1199.2,1199.1,4.00959]
[1609993071735,3.1091,1200.6,1197.4,9.8611]
[1609993072332,33.1091,1200.6,1197.4,9.8611]
[1609993073333,3.1091,1200.6,1197.4,9.8611]
[1609993073633,3.1091,1200.6,1199.2,4.00959]
[1609993075334,3.1091,1200.6,1197.4,9.8611]
[1609993075533,33.1091,1200.6,1197.4,9.8611]
[1609993075734,4.00959,1199.3,1199.0,4.00959]
[1609993075934,4.00959,1199.3,1197.4,9.8611]
[1609993076234,4.00959,1199.3,1197.4,6.1871]
[1609993077136,4.00959,1199.3,1194.1,41.051]
[1609993077337,4.00959,1199.3,1194.1,77.074]
[1609993077534,30.0,1199.9,1194.3,30.0]
[1609993077936,4.00959,1198.7,1198.6,4.00959]
[1609993078234,4.00959,1198.7,1194.3,66.023]
[1609993078836,48.9572,1198.6,1194.3,66.023]
[1609993079135,4.00959,1198.7,1194.3,66.023]
[1609993079837,4.00959,1198.7,1194.3,68.6433]
[1609993080037,4.00959,1198.7,1198.6,4.00959]
[1609993080441,4.00959,1198.7,1194.3,68.6433]
[1609993081941,56.1668,1199.8,1198.3,4.00959]
[1609993082741,30.0,1199.7,1198.3,4.00959]
[1609993082942,32.5275,1199.7,1198.3,4.00959]
[1609993083643,32.5275,1199.7,1194.3,68.6433]
[1609993083842,2.5275,1199.7,1194.3,68.6433]
[1609993084043,4.00959,1198.2,1198.1,4.00959]
[1609993085246,2.5275,1199.7,1198.1,4.00959]
[1609993086046,4.00959,1199.1,1198.9,4.00959]
[1609993087349,2.5275,1199.7,1198.9,4.00959]
[1609993088049,56.1668,1199.8,1199.6,4.00959]
[1609993088249,4.00959,1199.9,1199.6,4.00959]
[1609993088949,135.5787,1200.3,1199.6,4.00959]
[1609993090053,135.5787,1200.3,1200.2,4.00959]
[1609993093356,135.5787,1200.3,1194.3,68.6433]
[1609993094167,139.58829,1200.3,1200.0,4.00959]
[1609993094456,139.58829,1200.3,1194.3,68.6433]
[1609993095962,4.00959,1199.5,1199.3,4.00959]
[1609993097962,4.00959,1199.7,1199.5,4.00959]
[1609993098363,50.0878,1200.1,1199.5,4.00959]
[1609993100066,50.0878,1200.1,1200.0,4.00959]
[1609993106776,50.0878,1200.1,1194.3,68.6433]
[1609993106976,4.00959,1200.2,1194.3,68.6433]
[1609993108176,4.00959,1199.5,1199.3,4.00959]
[1609993108376,4.00959,1199.5,1194.3,68.6433]
[1609993108876,13.65979,1199.5,1194.3,68.6433]
[1609993110080,9.6502,1199.5,1199.1,4.00959]
[1609993112086,4.00959,1199.2,1199.1,4.00959]
[1609993112685,4.00959,1199.2,1194.3,68.6433]
[1609993114088,4.00959,1199.0,1198.8,4.00959]
[1609993114387,4.00959,1199.0,1194.3,68.6433]
[1609993116189,4.00959,1198.8,1198.7,4.00959]
[1609993118593,2.5682,1199.9,1198.7,4.00959]
[1609993120097,4.00959,1199.0,1198.9,4.00959]
[1609993120497,4.00959,1199.0,1194.3,68.6433]
[1609993122201,4.00959,1199.0,1198.9,4.00959]
[1609993126013,2.9416,1200.2,1198.9,4.00959]
[1609993126307,4.00959,1199.3,1198.9,4.00959]
[1609993126507,2.2209,1200.2,1198.9,4.00959]
[1609993128211,4.00959,1199.2,1199.1,4.00959]
[1609993129310,2.2209,1200.2,1199.1,4.00959]
[1609993130212,4.00959,1199.6,1199.4,4.00959]
[1609993131015,4.00959,1199.6,1194.3,68.6433]
[1609993132217,4.00959,1198.7,1198.5,4.00959]
[1609993134918,4.00959,1198.7,1194.3,68.6433]
[1609993136120,2.1653,1199.8,1194.3,68.6433]
[1609993136419,4.00959,1198.9,1198.7,4.00959]
[1609993137019,2.1653,1199.8,1198.7,4.00959]
[1609993137420,2.2209,1200.2,1194.3,68.6433]
[1609993137621,35.6943,1200.4,1194.3,68.6433]
[1609993138329,4.00959,1198.5,1198.3,4.00959]
[1609993140223,4.00959,1198.5,1194.3,68.6433]
[1609993140428,4.00959,1198.2,1198.0,4.00959]
[1609993140925,3.0752,1199.8,1198.0,4.00959]
[1609993141627,3.1605,1200.5,1198.0,4.00959]
[1609993141830,6.4946,1201.1,1198.0,4.00959]
[1609993142126,30.0,1201.0,1198.0,4.00959]
[1609993142425,4.00959,1198.7,1198.4,4.00959]
[1609993143129,4.00959,1198.7,1194.3,68.6433]
[1609993144333,33.1645,1199.9,1197.8,4.00959]
[1609993145230,3.1645,1199.9,1197.8,4.00959]
[1609993145530,30.0,1199.8,1197.8,4.00959]
[1609993145929,30.0,1199.8,1194.3,32.6203]
[1609993146130,5.9396,1199.7,1194.3,32.6203]
[1609993146331,30.0,1199.6,1194.3,32.6203]
[1609993146532,32.4782,1199.6,1194.3,32.6203]
[1609993146733,32.4782,1199.6,1197.5,4.00959]
[1609993147336,2.4782,1199.6,1197.5,4.00959]
[1609993148741,4.00959,1198.4,1198.2,4.00959]
[1609993150041,2.77,1199.3,1198.2,4.00959]
[1609993150741,4.00959,1199.0,1198.8,4.00959]
[1609993152346,2.3685,1200.3,1198.8,4.00959]
[1609993152745,4.00959,1199.4,1199.2,4.00959]
[1609993153147,2.3685,1200.3,1199.2,4.00959]
[1609993154151,30.0,1202.1,1199.2,4.00959]
[1609993154756,4.00959,1199.9,1199.8,4.00959]
[1609993155652,4.00959,1199.9,1194.3,68.6433]
[1609993156855,2.516,1200.6,1199.5,4.00959]
[1609993158956,4.00959,1199.7,1199.5,4.00959]
[1609993159357,4.00959,1199.7,1194.3,68.6433]
[1609993160765,2.516,1200.6,1199.4,4.00959]
[1609993161061,2.9747,1200.9,1199.4,4.00959]
[1609993161361,30.0,1202.1,1199.4,4.00959]
[1609993162467,30.0,1202.1,1194.3,68.6433]
[1609993162767,33.0128,1202.1,1194.3,68.6433]
[1609993163068,4.00959,1199.3,1199.1,4.00959]
[1609993163572,4.00959,1199.3,1194.3,68.6433]
[1609993165068,4.00959,1198.0,1197.9,4.00959]
[1609993165667,2.5183,1199.1,1197.9,4.00959]
[1609993167069,4.00959,1198.2,1197.9,4.00959]
[1609993169070,4.00959,1198.2,1198.1,4.00959]
[1609993169470,60.2082,1198.6,1198.1,4.00959]
[1609993171072,64.21779,1198.6,1198.4,4.00959]
[1609993172676,4.00959,1198.6,1198.4,4.00959]
[1609993173278,56.6894,1199.7,1198.4,4.00959]
[1609993175180,4.00959,1199.1,1199.0,4.00959]
[1609993176883,56.6894,1199.7,1199.0,4.00959]
[1609993177181,4.00959,1199.4,1199.2,4.00959]
[1609993180686,4.00959,1199.4,1194.3,68.6433]
[1609993181188,4.00959,1198.8,1198.5,4.00959]
[1609993183393,4.00959,1198.8,1198.7,4.00959]
[1609993185296,4.00959,1198.8,1194.3,68.6433]
[1609993186195,4.00959,1198.8,1194.3,32.6203]
[1609993187196,4.00959,1197.9,1197.8,4.00959]
[1609993188096,2.7608,1199.5,1197.8,4.00959]
[1609993189196,4.00959,1198.2,1198.0,4.00959]
[1609993190196,2.8755,1199.2,1198.0,4.00959]
[1609993191296,4.00959,1198.4,1198.3,4.00959]
[1609993194801,4.00959,1198.4,1194.3,32.6203]
[1609993195000,4.00959,1198.4,1194.3,68.6433]
[1609993195201,4.00959,1198.4,1198.3,4.00959]
[1609993198106,2.8755,1199.2,1198.3,4.00959]
[1609993198304,2.7608,1199.5,1198.3,4.00959]
[1609993198605,5.59,1199.7,1198.3,4.00959]
[1609993199205,10.72317809,1203.9,1198.9,4.00959]
[1609993199406,6.1897,1201.3,1198.9,4.00959]
[1609993199606,30.0,1201.2,1198.9,4.00959]
[1609993200607,6.1897,1201.3,1198.9,4.00959]
[1609993201107,30.0,1201.4,1198.9,4.00959]
[1609993201307,30.0,1201.4,1200.2,4.00959]
[1609993201507,30.0,1202.2,1200.2,4.00959]
[1609993202606,6.0017,1202.3,1200.2,4.00959]
[1609993203307,6.0017,1202.3,1200.6,4.00959]
[1609993205310,4.00959,1200.7,1200.6,4.00959]
[1609993207814,4.00959,1200.7,1194.5,30.0]
[1609993208114,4.00959,1200.7,1194.5,66.023]
[1609993209314,4.00959,1200.4,1200.1,4.00959]
[1609993209514,4.00959,1200.4,1194.5,66.023]
[1609993211319,4.00959,1199.9,1199.6,4.00959]
[1609993211617,4.00959,1199.9,1194.5,66.023]
[1609993213319,4.00959,1199.5,1199.2,4.00959]
[1609993214724,4.00959,1199.5,1194.5,66.023]
[1609993215322,2.2404,1199.9,1198.9,4.00959]
[1609993217324,4.00959,1199.7,1199.5,4.00959]
[1609993217722,2.2404,1199.9,1199.5,4.00959]
[1609993218123,2.3561,1200.2,1199.5,4.00959]
[1609993218424,58.0265,1200.5,1199.5,4.00959]
[1609993219325,4.00959,1199.6,1199.5,4.00959]
[1609993219626,2.1857,1200.2,1199.5,4.00959]
[1609993220727,3.1118,1200.5,1199.5,4.00959]
[1609993221028,2.2384,1200.8,1199.5,4.00959]
[1609993221238,3.674,1202.3,1199.5,4.00959]
[1609993221529,4.00959,1199.6,1194.5,66.023]
[1609993223328,4.00959,1198.4,1198.3,4.00959]
[1609993223828,4.00959,1198.4,1194.5,66.023]
[1609993225331,4.00959,1198.4,1198.2,4.00959]
[1609993225531,4.00959,1198.4,1194.5,66.023]
[1609993226733,6.23399,1198.4,1194.5,66.023]
[1609993227438,2.2244,1198.4,1197.8,4.00959]
[1609993229440,4.00959,1197.9,1197.8,4.00959]
[1609993230835,2.2244,1198.4,1197.8,4.00959]
[1609993231635,4.00959,1198.4,1198.3,4.00959]
[1609993231836,4.00959,1198.4,1197.6,2.5404]
[1609993232236,6.21189,1198.4,1197.6,2.5404]
[1609993232936,2.2023,1198.4,1197.6,2.5404]
[1609993233136,2.4234,1198.7,1197.6,2.5404]
[1609993233438,2.4234,1198.7,1198.5,4.00959]
[1609993233637,2.4234,1198.7,1197.9,2.272]
[1609993235139,2.4234,1198.7,1197.6,2.5404]
[1609993235540,4.00959,1197.7,1197.6,2.5404]
[1609993235940,4.00959,1197.7,1196.6,4.00959]
[1609993236641,7.36289,1197.7,1196.6,4.00959]
[1609993237441,3.3533,1197.7,1197.1,4.00959]
[1609993237641,3.3533,1197.7,1194.8,33.674]
[1609993237940,3.3533,1197.7,1196.8,2.6035]
[1609993238443,7.0914,1197.6,1196.8,2.6035]
[1609993238642,3.3533,1197.7,1196.8,2.6035]
[1609993239541,4.00959,1196.9,1196.8,2.6035]
[1609993239944,3.3533,1197.7,1196.8,2.6035]
[1609993241447,4.00959,1197.4,1197.3,4.00959]
[1609993241647,4.00959,1197.4,1196.8,2.6035]
[1609993242848,4.00959,1197.4,1194.8,33.674]
[1609993243455,3.2655,1197.7,1197.0,4.00959]
[1609993245550,4.00959,1197.1,1197.0,4.00959]
[1609993245850,4.00959,1197.1,1196.7,2.4063]
[1609993246052,3.2655,1197.7,1196.7,2.4063]
[1609993246866,2.6392,1198.2,1196.7,2.4063]
[1609993247063,2.4234,1198.7,1196.7,2.4063]
[1609993247458,4.00959,1197.4,1197.2,4.00959]
[1609993247975,2.7003,1197.8,1196.7,2.4063]
[1609993248859,2.7715,1199.2,1194.8,33.674]
[1609993249057,34.8648742,1202.1,1194.8,33.674]
[1609993249457,4.00959,1197.5,1197.3,4.00959]
[1609993249858,2.6795,1198.3,1197.3,4.00959]
[1609993250860,30.0,1202.1,1197.3,4.00959]
[1609993251462,30.0,1202.1,1197.7,4.00959]
[1609993253463,30.0,1202.1,1198.1,4.00959]
[1609993255267,30.0,1202.1,1198.1,6.08449]
[1609993255467,4.00959,1198.8,1198.7,4.00959]
[1609993256167,3.4166,1198.9,1198.7,4.00959]
[1609993256868,30.0,1202.1,1198.7,4.00959]
[1609993257268,60.4048,1200.9,1198.7,4.00959]
[1609993257469,4.00959,1199.1,1199.0,4.00959]
[1609993257969,2.5757,1199.3,1199.0,4.00959]
[1609993258870,2.3655,1200.9,1199.0,4.00959]
[1609993259570,2.3655,1200.9,1199.7,4.00959]
[1609993261574,4.00959,1200.1,1199.9,4.00959]
[1609993262074,7.06289,1200.1,1199.9,4.00959]
[1609993262573,7.06289,1200.1,1198.1,2.0749]
[1609993262774,7.06289,1200.1,1194.8,33.674]
[1609993263588,4.00959,1199.1,1198.9,4.00959]
[1609993263775,4.00959,1199.1,1194.8,33.674]
[1609993263975,6.74479,1199.1,1194.8,33.674]
[1609993265478,6.74479,1199.1,1194.9,6.1559]
[1609993265677,4.00959,1198.4,1195.0,30.0]
[1609993267080,2.7352,1199.1,1195.0,30.0]
[1609993267282,2.318,1199.4,1195.0,30.0]
[1609993267778,2.318,1199.4,1195.0,32.2974]
[1609993268079,4.00959,1198.7,1198.4,4.00959]
[1609993268281,2.318,1199.4,1198.4,4.00959]
[1609993268579,2.318,1199.4,1195.0,32.2974]
[1609993268980,5.8304,1200.4,1195.0,32.2974]
[1609993270082,4.00959,1198.9,1198.7,4.00959]
[1609993270483,4.00959,1198.9,1195.0,32.2974]
[1609993272084,4.00959,1198.9,1198.8,4.00959]
[1609993273187,2.8548,1199.5,1198.8,4.00959]
[1609993273487,5.8304,1200.4,1198.8,4.00959]
[1609993274087,4.00959,1199.2,1199.0,4.00959]
[1609993274589,4.00959,1199.2,1195.0,32.2974]
[1609993276189,4.00959,1198.9,1198.6,4.00959]
[1609993276990,2.3277,1199.7,1198.6,4.00959]
[1609993278187,4.00959,1199.2,1199.0,4.00959]
[1609993280289,2.3277,1199.7,1199.0,4.00959]
[1609993280490,5.8304,1200.4,1199.0,4.00959]
[1609993280691,33.674,1202.1,1199.0,4.00959]
[1609993280892,39.6857,1202.1,1199.0,4.00959]
[1609993281190,36.0117,1202.1,1199.0,4.00959]
[1609993282289,4.00959,1199.9,1199.7,4.00959]
[1609993287294,3.3208,1200.4,1199.7,4.00959]
[1609993287695,2.5464,1200.7,1199.7,4.00959]
[1609993287896,49.3751,1201.2,1199.7,4.00959]
[1609993288297,4.00959,1200.3,1195.0,32.2974]
[1609993290300,4.00959,1200.3,1200.0,4.00959]
[1609993290800,4.00959,1200.3,1195.0,32.2974]
[1609993292307,4.00959,1200.3,1200.2,4.00959]
[1609993293906,4.00959,1200.3,1195.0,32.2974]
[1609993294406,4.00959,1200.3,1199.9,4.00959]
[1609993294707,4.00959,1200.3,1195.0,32.2974]
[1609993295106,6.19469,1200.3,1195.0,32.2974]
[1609993296107,6.19469,1200.3,1195.0,68.3204]
[1609993296407,2.1851,1200.3,1199.8,4.00959]
[1609993296607,2.1851,1200.3,1195.0,68.3204]
[1609993298310,2.5713,1200.6,1195.0,68.3204]
[1609993298511,4.00959,1200.1,1200.0,4.00959]
[1609993299714,2.8481,1200.3,1200.0,4.00959]
[1609993300113,3.0625,1200.6,1200.0,4.00959]
[1609993300414,3.0625,1200.6,1200.4,4.00959]
[1609993301016,3.0625,1200.6,1195.0,68.3204]
[1609993302415,4.00959,1200.4,1200.0,4.00959]
[1609993306229,4.00959,1200.4,1195.0,68.3204]
[1609993306422,4.00959,1200.4,1199.8,4.00959]
[1609993308425,4.00959,1200.4,1195.0,68.3204]
[1609993310428,4.00959,1200.4,1200.0,4.00959]
[1609993312631,4.00959,1200.4,1195.0,68.3204]
[1609993314435,3.0625,1200.6,1200.0,4.00959]
[1609993314736,3.2785,1200.9,1195.0,68.3204]
[1609993315136,5.6509,1201.4,1195.0,68.3204]
[1609993316438,5.6509,1201.4,1200.1,4.00959]
[1609993318539,4.00959,1200.2,1200.1,4.00959]
[1609993319552,4.00959,1200.2,1195.0,68.3204]
[1609993322548,4.00959,1200.2,1199.9,4.00959]
[1609993323946,2.2168,1200.6,1199.9,4.00959]
[1609993324145,5.6509,1201.4,1199.9,4.00959]
[1609993324547,4.00959,1200.3,1199.9,4.00959]
[1609993324947,2.3625,1200.7,1199.9,4.00959]
[1609993326548,6.37209,1200.7,1200.6,4.00959]
[1609993328250,6.37209,1200.7,1195.0,68.3204]
[1609993328551,6.37209,1200.7,1200.5,4.00959]
[1609993331252,2.3625,1200.7,1200.5,4.00959]
[1609993331453,36.0507,1203.4,1200.5,4.00959]
[1609993332352,68.4639,1203.2,1200.5,4.00959]
[1609993332553,71.1613,1203.2,1200.9,4.00959]
[1609993332853,101.1613,1203.2,1200.9,4.00959]
[1609993334056,71.1613,1203.2,1200.9,4.00959]
[1609993334254,30.0,1203.1,1200.9,4.00959]
[1609993334654,4.00959,1201.0,1200.9,4.00959]
[1609993335154,4.00959,1201.0,1195.0,68.3204]
[1609993336657,3.1757,1201.5,1200.8,4.00959]
[1609993338658,4.00959,1201.2,1201.0,4.00959]
[1609993346862,2.7844,1201.8,1201.0,4.00959]